lending/lending_fUSD_20240510
["ID","MTS","AMOUNT","RATE_DAILY","PERIOD"]
[326768516,1715337062186,-1037.98964315,0.00027651,15]
[326768517,1715337062196,-155.82,0.00027652,2]
[326768518,1715337062205,-1037.98964315,0.0002767,15]
[326768519,1715337062215,-1037.98964315,0.0002767,15]
[326768520,1715337062224,-618.73900491,0.00027671,5]
[326768521,1715337062234,-500.0,0.00027671,5]
[326768522,1715337062243,-200.0,0.00027671,5]
[326768523,1715337062252,-500.0,0.00027671,5]
[326768524,1715337062262,-500.0,0.00027671,5]
[326768525,1715337062271,-500.0,0.00027671,5]
[326768526,1715337062282,-692.04,0.00027671,5]
[326768527,1715337062291,-500.0,0.00027671,5]
[326768528,1715337062301,-500.0,0.00027671,5]
[326768529,1715337062310,-500.0,0.00027671,5]
[326768530,1715337062319,-500.0,0.00027671,5]
[326768531,1715337062329,-1170.33,0.00027671,5]
[326768532,1715337062338,-764.28,0.00027671,5]
[326768533,1715337062348,-708.94,0.00027671,5]
[326768534,1715337062357,-660.63,0.00027671,5]
[326768535,1715337062367,-500.0,0.00027671,5]
[326768536,1715337062377,-500.0,0.00027671,5]
[326768537,1715337062386,-697.74,0.00027671,5]
[326768538,1715337062395,-500.0,0.00027671,5]
[326768539,1715337062405,-515.18,0.00027671,5]
[326768540,1715337062414,-500.0,0.00027671,5]
[326768541,1715337062423,-524.65,0.00027671,5]
[326768542,1715337062432,-500.0,0.00027671,5]
[326768543,1715337062442,-581.11,0.00027671,5]
[326768544,1715337062451,-500.0,0.00027671,5]
[326768545,1715337062460,-500.0,0.00027671,5]
[326768546,1715337062470,-873.55,0.00027671,5]
[326768547,1715337062479,-500.0,0.00027671,5]
[326768548,1715337062488,-500.0,0.00027671,5]
[326768549,1715337062497,-500.0,0.00027671,5]
[326768550,1715337062507,-500.0,0.00027671,5]
[326768551,1715337062517,-500.0,0.00027671,5]
[326768552,1715337062526,-543.21,0.00027671,5]
[326768553,1715337062545,-500.0,0.00027671,5]
[326768554,1715337062564,-500.0,0.00027671,5]
[326768555,1715337062588,-500.0,0.00027671,5]
[326768556,1715337062612,-672.64,0.00027671,5]
[326768557,1715337062636,-688.39,0.00027671,5]
[326768558,1715337062660,-666.11,0.00027671,5]
[326768559,1715337062685,-774.54,0.00027671,5]
[326768560,1715337062710,-500.0,0.00027671,5]
[326768561,1715337062720,-154.08696871,0.00027671,5]
[326768562,1715337062730,-883.79,0.00027671,5]
[326768563,1715337062744,-513.11724931,0.00027671,5]
[326768564,1715337062753,-308.51166224,0.00027671,5]
[326768565,1715337062763,-519.55,0.00027671,5]
[326768566,1715337062772,-500.0,0.00027671,5]
[326768567,1715337062782,-592.32,0.00027671,5]
[326768568,1715337062792,-565.84,0.00027671,5]
[326768569,1715337062801,-965.11,0.00027671,5]
[326768570,1715337062813,-947.5,0.00027671,5]
[326768571,1715337062822,-500.0,0.00027671,5]
[326768572,1715337062831,-500.0,0.00027671,5]
[326768573,1715337062841,-500.0,0.00027671,5]
[326768574,1715337062850,-500.0,0.00027671,5]
[326768575,1715337062860,-628.86,0.00027671,5]
[326768576,1715337062869,-501.09,0.00027671,5]
[326768577,1715337062878,-500.0,0.00027671,5]
[326768578,1715337062887,-500.0,0.00027671,5]
[326768579,1715337062897,-500.0,0.00027671,5]
[326768580,1715337062906,-586.84,0.00027671,5]
[326768581,1715337062915,-879.19,0.00027671,5]
[326768582,1715337062924,-500.0,0.00027671,5]
[326768583,1715337062934,-615.51,0.00027671,5]
[326768584,1715337062944,-500.0,0.00027671,5]
[326768585,1715337062953,-500.0,0.00027671,5]
[326768586,1715337062963,-657.39,0.00027671,5]
[326768587,1715337062973,-500.0,0.00027671,5]
[326768588,1715337062982,-1003.11,0.00027671,5]
[326768589,1715337062992,-500.0,0.00027671,5]
[326768590,1715337063003,-500.0,0.00027671,5]
[326768591,1715337063012,-500.0,0.00027671,5]
[326768592,1715337063022,-500.0,0.00027671,5]
[326768593,1715337063031,-595.17,0.00027671,5]
[326768594,1715337063041,-665.74,0.00027671,5]
[326768595,1715337063050,-633.36,0.00027671,5]
[326768596,1715337063059,-500.0,0.00027671,5]
[326768597,1715337063068,-500.0,0.00027671,5]
[326768598,1715337063077,-500.0,0.00027671,5]
[326768599,1715337063087,-500.0,0.00027671,5]
[326768600,1715337063096,-500.0,0.00027671,5]
[326768601,1715337063106,-524.79410733,0.00027671,5]
[326768602,1715337063116,-650.78,0.00027671,5]
[326768603,1715337063125,-531.25,0.00027671,5]
[326768604,1715337063135,-500.0,0.00027671,5]
[326768605,1715337063144,-500.0,0.00027671,5]
[326768606,1715337063153,-500.0,0.00027671,5]
[326768607,1715337063163,-500.0,0.00027671,5]
[326768608,1715337063172,-500.0,0.00027671,5]
[326768609,1715337063182,-500.0,0.00027671,5]
[326768610,1715337063192,-562.13,0.00027671,5]
[326768611,1715337063200,-150.0,0.00027671,5]
[326768612,1715337063210,-500.0,0.00027671,5]
[326768613,1715337063219,-820.55,0.00027671,5]
[326768614,1715337063228,-500.0,0.00027671,5]
[326768615,1715337063237,-500.0,0.00027671,5]
[326768616,1715337063247,-500.0,0.00027671,5]
[326768617,1715337063256,-501.65,0.00027671,5]
[326768618,1715337063265,-500.0,0.00027671,5]
[326768619,1715337063275,-539.09,0.00027671,5]
[326768620,1715337063286,-500.0,0.00027671,5]
[326768621,1715337063295,-500.0,0.00027671,5]
[326768622,1715337063305,-925.25,0.00027671,5]
[326768623,1715337063314,-507.81977006,0.00027671,5]
[326768624,1715337063323,-500.0,0.00027671,5]
[326768625,1715337063333,-500.0,0.00027671,5]
[326768626,1715337063342,-830.57,0.00027671,5]
[326768627,1715337063351,-500.0,0.00027671,5]
[326768628,1715337063360,-841.83,0.00027671,5]
[326768629,1715337063370,-440.10426764,0.00027671,5]
[326768630,1715337063380,-500.0,0.00027671,5]
[326768631,1715337063389,-517.11,0.00027671,5]
[326768632,1715337063399,-500.0,0.00027671,5]
[326768633,1715337063408,-612.56,0.00027671,5]
[326768634,1715337063417,-500.0,0.00027671,5]
[326768635,1715337063426,-500.0,0.00027671,5]
[326768636,1715337063436,-500.0,0.00027671,5]
[326768637,1715337063445,-500.0,0.00027671,5]
[326768638,1715337063532,-500.0,0.00027671,5]
[326768639,1715337063579,-544.59,0.00027671,5]
[326768640,1715337063588,-585.55,0.00027671,5]
[326768641,1715337063598,-593.45,0.00027671,5]
[326768642,1715337063608,-500.0,0.00027671,5]
[326768643,1715337063618,-500.0,0.00027671,5]
[326768644,1715337063627,-500.0,0.00027671,5]
[326768645,1715337063636,-500.0,0.00027671,5]
[326768646,1715337063645,-515.43,0.00027671,5]
[326768647,1715337063655,-500.0,0.00027671,5]
[326768648,1715337063664,-500.0,0.00027671,5]
[326768649,1715337063673,-500.0,0.00027671,5]
[326768650,1715337063684,-910.95,0.00027671,5]
[326768651,1715337063693,-501.6715466,0.00027671,5]
[326768652,1715337063702,-825.64,0.00027671,5]
[326768653,1715337063711,-580.76,0.00027671,5]
[326768654,1715337063720,-500.0,0.00027671,5]
[326768655,1715337063730,-605.75425749,0.00027671,5]
[326768656,1715337063744,-517.25198337,0.00027671,5]
[326768657,1715337063753,-500.0,0.00027671,5]
[326768658,1715337063763,-529.86,0.00027671,15]
[326768659,1715337063774,-500.0,0.00027671,5]
[326768660,1715337063787,-500.0,0.00027671,5]
[326768661,1715337063796,-558.23,0.00027671,5]
[326768662,1715337063806,-500.0,0.00027671,5]
[326768663,1715337063818,-500.0,0.00027671,5]
[326768664,1715337063828,-500.0,0.00027671,5]
[326768665,1715337063838,-516.18222325,0.00027671,5]
[326768666,1715337063848,-513.07792868,0.00027671,5]
[326768667,1715337063858,-500.0,0.00027671,5]
[326768668,1715337063868,-500.0,0.00027671,5]
[326768669,1715337063878,-500.0,0.00027671,5]
[326768670,1715337063887,-500.0,0.00027671,5]
[326768671,1715337063897,-500.0,0.00027671,5]
[326768672,1715337063907,-1708.63,0.00027671,5]
[326768673,1715337063917,-520.82690479,0.00027671,5]
[326768674,1715337063927,-500.0,0.00027671,5]
[326768675,1715337063937,-846.28,0.00027671,5]
[326768676,1715337063947,-500.0,0.00027671,5]
[326768677,1715337063956,-500.0,0.00027671,2]
[326768678,1715337063966,-500.02,0.00027671,5]
[326768679,1715337063975,-864.33,0.00027671,5]
[326768680,1715337063986,-500.0,0.00027671,5]
[326768681,1715337063995,-500.0,0.00027671,5]
[326768682,1715337064005,-500.0,0.00027671,5]
[326768683,1715337064015,-500.0,0.00027671,5]
[326768684,1715337064024,-703.88,0.00027671,5]
[326768685,1715337064036,-571.32,0.00027671,5]
[326768686,1715337064045,-1287.64,0.00027671,5]
[326768687,1715337064055,-1617.59,0.00027671,5]
[326768688,1715337064064,-500.0,0.00027671,5]
[326768689,1715337064073,-500.0,0.00027671,5]
[326768690,1715337064082,-1131.29,0.00027671,5]
[326768691,1715337064092,-500.0,0.00027671,5]
[326768692,1715337064101,-568.3341504,0.00027671,2]
[326768693,1715337064111,-500.0,0.00027671,5]
[326768694,1715337064120,-667.88,0.00027671,5]
[326768695,1715337064130,-2000.0,0.00027671,5]
[326768696,1715337064139,-500.0,0.00027671,5]
[326768697,1715337064149,-657.3,0.00027671,5]
[326768698,1715337064159,-500.0,0.00027671,5]
[326768699,1715337064168,-500.0,0.00027671,5]
[326768700,1715337064178,-663.42,0.00027671,5]
[326768701,1715337064188,-914.08,0.00027671,5]
[326768702,1715337064197,-549.99,0.00027671,5]
[326768703,1715337064206,-500.0,0.00027671,5]
[326768704,1715337064215,-500.0,0.00027671,5]
[326768705,1715337064225,-500.0,0.00027671,5]
[326768706,1715337064234,-1140.2,0.00027671,5]
[326768707,1715337064244,-500.0,0.00027671,5]
[326768708,1715337064253,-921.94,0.00027671,5]
[326768709,1715337064262,-848.69,0.00027671,5]
[326768710,1715337064272,-500.0,0.00027671,5]
[326768711,1715337064282,-422.82040809,0.00027671,5]
[326768712,1715337064291,-1202.99,0.00027671,5]
[326768713,1715337064300,-546.66,0.00027671,5]
[326768714,1715337064310,-500.0,0.00027671,5]
[326768715,1715337064319,-500.0,0.00027671,5]
[326768716,1715337064329,-1089.2,0.00027671,5]
[326768717,1715337064338,-500.0,0.00027671,5]
[326768718,1715337064347,-986.23,0.00027671,5]
[326768719,1715337064357,-500.0,0.00027671,5]
[326768720,1715337064366,-500.0,0.00027671,5]
[326768721,1715337064375,-969.6,0.00027671,5]
[326768722,1715337064385,-553.41,0.00027671,5]
[326768723,1715337064394,-1805.03,0.00027671,5]
[326768724,1715337064404,-500.0,0.00027671,5]
[326768725,1715337064413,-853.17,0.00027671,5]
[326768726,1715337064422,-1824.82,0.00027671,5]
[326768727,1715337064432,-2231.16,0.00027671,5]
[326768728,1715337064442,-1325.64,0.00027671,5]
[326768729,1715337064451,-2170.9,0.00027671,5]
[326768730,1715337064460,-500.0,0.00027671,5]
[326768731,1715337064470,-1842.24,0.00027671,5]
[326768732,1715337064480,-500.0,0.00027671,5]
[326768733,1715337064489,-500.0,0.00027671,5]
[326768734,1715337064498,-500.0,0.00027671,5]
[326768735,1715337064507,-500.0,0.00027671,5]
[326768736,1715337064518,-500.0,0.00027671,5]
[326768737,1715337064528,-1838.93,0.00027671,5]
[326768738,1715337064539,-509.11677269,0.00027671,5]
[326768739,1715337064548,-929.05,0.00027671,5]
[326768740,1715337064558,-500.0,0.00027671,5]
[326768741,1715337064567,-1798.72,0.00027671,5]
[326768742,1715337064577,-500.0,0.00027671,5]
[326768743,1715337064587,-541.23775528,0.00027671,5]
[326768744,1715337064597,-500.0,0.00027671,5]
[326768745,1715337064606,-710.94,0.00027671,5]
[326768746,1715337064616,-272.76304656,0.00027671,5]
[326768747,1715337064626,-839.31,0.00027671,5]
[326768748,1715337064635,-1604.99,0.00027671,5]
[326768749,1715337064645,-548.39,0.00027671,5]
[326768750,1715337064655,-1548.89,0.00027671,5]
[326768751,1715337064665,-500.0,0.00027671,5]
[326768752,1715337064675,-1022.11,0.00027671,5]
[326768753,1715337064685,-1057.83,0.00027671,5]
[326768754,1715337064694,-900.06,0.00027671,5]
[326768755,1715337064704,-1109.12,0.00027671,5]
[326768756,1715337064713,-1228.93,0.00027671,5]
[326768757,1715337064723,-500.0,0.00027671,5]
[326768758,1715337064739,-803.8,0.00027671,5]
[326768759,1715337064749,-500.0,0.00027671,5]
[326768760,1715337064758,-500.0,0.00027671,5]
[326768761,1715337064767,-500.0,0.00027671,5]
[326768762,1715337064778,-1477.95,0.00027671,5]
[326768763,1715337064788,-500.0,0.00027671,5]
[326768764,1715337064797,-668.15,0.00027671,5]
[326768765,1715337064808,-2468.51,0.00027671,5]
[326768766,1715337064818,-500.0,0.00027671,5]
[326768767,1715337064827,-603.38,0.00027671,5]
[326768768,1715337064837,-635.06,0.00027671,5]
[326768769,1715337064847,-500.0,0.00027671,5]
[326768770,1715337064856,-500.0,0.00027671,5]
[326768771,1715337064866,-614.53,0.00027671,5]
[326768772,1715337064876,-979.22,0.00027671,5]
[326768773,1715337064885,-1059.27,0.00027671,5]
[326768774,1715337064895,-2196.83,0.00027671,5]
[326768775,1715337064905,-740.16,0.00027671,5]
[326768776,1715337064915,-500.0,0.00027671,5]
[326768777,1715337064925,-290.12501717,0.00027671,5]
[326768778,1715337064935,-566.47596894,0.00027671,5]
[326768779,1715337064946,-277.34124125,0.00027671,5]
[326768780,1715337064955,-655.65,0.00027671,5]
[326768781,1715337064964,-500.0,0.00027671,5]
[326768782,1715337064974,-2368.43,0.00027671,5]
[326768783,1715337064984,-736.88,0.00027671,5]
[326768784,1715337064994,-500.0,0.00027671,5]
[326768785,1715337065004,-500.0,0.00027671,5]
[326768786,1715337065013,-1569.16,0.00027671,5]
[326768787,1715337065023,-500.0,0.00027671,5]
[326768788,1715337065033,-1470.63,0.00027671,5]
[326768789,1715337065042,-1252.58,0.00027671,5]
[326768790,1715337065052,-570.07,0.00027671,5]
[326768791,1715337065062,-500.0,0.00027671,5]
[326768792,1715337065071,-500.0,0.00027671,5]
[326768793,1715337065080,-907.39,0.00027671,5]
[326768794,1715337065090,-500.0,0.00027671,5]
[326768795,1715337065099,-500.0,0.00027671,5]
[326768796,1715337065108,-874.53,0.00027671,5]
[326768797,1715337065118,-868.45,0.00027671,5]
[326768798,1715337065127,-2467.22,0.00027671,5]
[326768799,1715337065137,-500.0,0.00027671,5]
[326768800,1715337065147,-500.0,0.00027671,5]
[326768801,1715337065157,-1740.21,0.00027671,5]
[326768802,1715337065166,-645.14,0.00027671,5]
[326768803,1715337065176,-712.69,0.00027671,5]
[326768804,1715337065185,-1006.83,0.00027671,5]
[326768805,1715337065194,-1662.43,0.00027671,5]
[326768806,1715337065205,-802.75,0.00027671,5]
[326768807,1715337065215,-500.0,0.00027671,5]
[326768808,1715337065225,-500.0,0.00027671,5]
[326768809,1715337065234,-961.84,0.00027671,5]
[326768810,1715337065244,-826.35,0.00027671,5]
[326768811,1715337065254,-905.52,0.00027671,5]
[326768812,1715337065263,-500.0,0.00027671,5]
[326768813,1715337065272,-1034.98,0.00027671,5]
[326768814,1715337065282,-500.0,0.00027671,5]
[326768815,1715337065292,-500.0,0.00027671,5]
[326768816,1715337065302,-679.12,0.00027671,5]
[326768817,1715337065311,-500.0,0.00027671,5]
[326768818,1715337065321,-500.0,0.00027671,5]
[326768819,1715337065332,-848.5,0.00027671,5]
[326768820,1715337065341,-776.81,0.00027671,5]
[326768821,1715337065351,-500.0,0.00027671,5]
[326768822,1715337065360,-776.68,0.00027671,5]
[326768823,1715337065369,-500.0,0.00027671,5]
[326768824,1715337065379,-695.56,0.00027671,5]
[326768825,1715337065388,-1469.73,0.00027671,5]
[326768826,1715337065398,-500.0,0.00027671,5]
[326768827,1715337065407,-500.0,0.00027671,5]
[326768828,1715337065416,-500.0,0.00027671,5]
[326768829,1715337065426,-810.07,0.00027671,5]
[326768830,1715337065435,-746.59,0.00027671,5]
[326768831,1715337065445,-500.0,0.00027671,5]
[326768832,1715337065455,-500.0,0.00027671,5]
[326768833,1715337065464,-1014.99,0.00027671,5]
[326768834,1715337065473,-562.72,0.00027671,5]
[326768835,1715337065483,-500.0,0.00027671,5]
[326768836,1715337065492,-500.0,0.00027671,5]
[326768837,1715337065501,-2507.9,0.00027671,5]
[326768838,1715337065511,-500.0,0.00027671,5]
[326768839,1715337065520,-1064.33,0.00027671,5]
[326768840,1715337065529,-990.58,0.00027671,5]
[326768841,1715337065539,-500.0,0.00027671,5]
[326768842,1715337065548,-500.0,0.00027671,5]
[326768843,1715337065558,-500.0,0.00027671,5]
[326768844,1715337065567,-1026.13,0.00027671,5]
[326768845,1715337065577,-500.0,0.00027671,5]
[326768846,1715337065587,-1121.14,0.00027671,5]
[326768847,1715337065596,-500.0,0.00027671,5]
[326768848,1715337065605,-500.0,0.00027671,5]
[326768849,1715337065614,-1005.86,0.00027671,5]
[326768850,1715337065624,-500.0,0.00027671,5]
[326768851,1715337065633,-1293.75,0.00027671,5]
[326768852,1715337065643,-500.0,0.00027671,5]
[326768853,1715337065652,-1125.13,0.00027671,5]
[326768854,1715337065662,-500.0,0.00027671,5]
[326768855,1715337065671,-743.38,0.00027671,5]
[326768856,1715337065962,-553.35,0.00027671,5]
[326768857,1715337065977,-625.58,0.00027671,5]
[326768858,1715337065987,-1161.74,0.00027671,5]
[326768859,1715337065997,-500.0,0.00027671,5]
[326768860,1715337066006,-1169.31,0.00027671,5]
[326768861,1715337066015,-589.6,0.00027671,5]
[326768862,1715337066026,-500.0,0.00027671,5]
[326768863,1715337066036,-500.0,0.00027671,5]
[326768864,1715337066045,-957.1,0.00027671,5]
[326768865,1715337066055,-596.82,0.00027671,5]
[326768866,1715337066065,-500.0,0.00027671,5]
[326768867,1715337066074,-500.0,0.00027671,5]
[326768868,1715337066083,-616.61,0.00027671,5]
[326768869,1715337066093,-500.0,0.00027671,5]
[326768870,1715337066102,-500.0,0.00027671,5]
[326768871,1715337066111,-500.0,0.00027671,5]
[326768872,1715337066120,-2697.67,0.00027671,5]
[326768873,1715337066130,-500.0,0.00027671,5]
[326768874,1715337066139,-585.31,0.00027671,5]
[326768875,1715337066148,-1056.55,0.00027671,5]
[326768876,1715337066158,-500.0,0.00027671,5]
[326768877,1715337066167,-500.0,0.00027671,5]
[326768878,1715337066177,-1367.23,0.00027671,5]
[326768879,1715337066186,-847.87,0.00027671,5]
[326768880,1715337066196,-1487.76,0.00027671,5]
[326768881,1715337066206,-500.0,0.00027671,5]
[326768882,1715337066215,-686.75,0.00027671,5]
[326768883,1715337066224,-722.54,0.00027671,5]
[326768884,1715337066233,-500.0,0.00027671,5]
[326768885,1715337066243,-500.0,0.00027671,5]
[326768886,1715337066252,-500.0,0.00027671,5]
[326768887,1715337066262,-500.0,0.00027671,5]
[326768888,1715337066271,-1158.27,0.00027671,5]
[326768889,1715337066281,-917.05,0.00027671,5]
[326768890,1715337066291,-848.7,0.00027671,5]
[326768891,1715337066300,-500.0,0.00027671,5]
[326768892,1715337066310,-500.0,0.00027671,5]
[326768893,1715337066320,-544.22,0.00027671,5]
[326768894,1715337066333,-500.0,0.00027671,5]
[326768895,1715337066342,-500.0,0.00027671,5]
[326768896,1715337066352,-500.0,0.00027671,5]
[326768897,1715337066362,-655.61,0.00027671,5]
[326768898,1715337066372,-670.34,0.00027671,5]
[326768899,1715337066382,-500.0,0.00027671,5]
[326768900,1715337066391,-2148.64,0.00027671,5]
[326768901,1715337066401,-500.0,0.00027671,5]
[326768902,1715337066410,-500.0,0.00027671,5]
[326768903,1715337066420,-1370.14,0.00027671,5]
[326768904,1715337066430,-1042.52,0.00027671,5]
[326768905,1715337066440,-500.0,0.00027671,5]
[326768906,1715337066449,-788.99,0.00027671,5]
[326768907,1715337066459,-500.0,0.00027671,5]
[326768908,1715337066469,-1696.4,0.00027671,5]
[326768909,1715337066479,-500.0,0.00027671,5]
[326768910,1715337066489,-1340.14,0.00027671,5]
[326768911,1715337066499,-787.52,0.00027671,5]
[326768912,1715337066508,-500.0,0.00027671,5]
[326768913,1715337066518,-568.8,0.00027671,5]
[326768914,1715337066528,-859.74,0.00027671,5]
[326768915,1715337066539,-563.38,0.00027671,5]
[326768916,1715337066549,-1230.26,0.00027671,5]
[326768917,1715337066558,-500.0,0.00027671,5]
[326768918,1715337066568,-500.0,0.00027671,5]
[326768919,1715337066577,-601.11,0.00027671,5]
[326768920,1715337066586,-3135.76,0.00027671,5]
[326768921,1715337066596,-1223.13,0.00027671,5]
[326768922,1715337066605,-735.03,0.00027671,5]
[326768923,1715337066615,-500.0,0.00027671,5]
[326768924,1715337066626,-500.0,0.00027671,5]
[326768925,1715337066635,-18157.21,0.00027671,5]
[326768926,1715337066645,-500.0,0.00027671,5]
[326768927,1715337066654,-500.0,0.00027671,5]
[326768928,1715337066664,-1145.39,0.00027671,5]
[326768929,1715337066674,-500.0,0.00027671,5]
[326768930,1715337066683,-2470.51,0.00027671,5]
[326768931,1715337066692,-1044.71,0.00027671,5]
[326768932,1715337066702,-500.0,0.00027671,5]
[326768933,1715337066711,-2747.99,0.00027671,5]
[326768934,1715337066720,-500.0,0.00027671,5]
[326768935,1715337066731,-710.06,0.00027671,5]
[326768936,1715337066744,-500.0,0.00027671,5]
[326768937,1715337066754,-1941.56,0.00027671,5]
[326768938,1715337066763,-666.53,0.00027671,5]
[326768939,1715337066773,-500.0,0.00027671,5]
[326768940,1715337066785,-500.0,0.00027671,5]
[326768941,1715337066795,-995.97,0.00027671,5]
[326768942,1715337066804,-500.0,0.00027671,5]
[326768943,1715337066815,-500.0,0.00027671,5]
[326768944,1715337066824,-1364.26,0.00027671,5]
[326768945,1715337066834,-2125.37,0.00027671,5]
[326768946,1715337066844,-805.95,0.00027671,5]
[326768947,1715337066853,-590.91,0.00027671,5]
[326768948,1715337066862,-4857.5,0.00027671,5]
[326768949,1715337066872,-500.0,0.00027671,5]
[326768950,1715337066882,-559.3,0.00027671,5]
[326768951,1715337066892,-1377.88,0.00027671,5]
[326768952,1715337066902,-1798.09,0.00027671,5]
[326768953,1715337066912,-2939.81,0.00027671,5]
[326768954,1715337066922,-554.72,0.00027671,5]
[326768955,1715337066931,-1249.12,0.00027671,5]
[326768956,1715337066940,-512.87,0.00027671,5]
[326768957,1715337066950,-8106.86,0.00027671,5]
[326768958,1715337066960,-1569.95,0.00027671,5]
[326768959,1715337066970,-510.24,0.00027671,5]
[326768960,1715337066979,-831.78,0.00027671,5]
[326768961,1715337066989,-500.0,0.00027671,5]
[326768962,1715337066999,-551.48,0.00027671,5]
[326768963,1715337067008,-726.83,0.00027671,5]
[326768964,1715337067018,-500.0,0.00027671,5]
[326768965,1715337067027,-1119.6,0.00027671,5]
[326768966,1715337067037,-500.0,0.00027671,5]
[326768967,1715337067047,-3273.18,0.00027671,5]
[326768968,1715337067056,-2287.17,0.00027671,5]
[326768969,1715337067066,-500.0,0.00027671,5]
[326768970,1715337067076,-799.51,0.00027671,5]
[326768971,1715337067085,-500.0,0.00027671,5]
[326768972,1715337067095,-1254.45,0.00027671,5]
[326768973,1715337067105,-605.06,0.00027671,5]
[326768974,1715337067114,-2686.02,0.00027671,5]
[326768975,1715337067123,-2775.35,0.00027671,5]
[326768976,1715337067133,-2330.96,0.00027671,5]
[326768977,1715337067142,-599.82,0.00027671,5]
[326768978,1715337067151,-617.64,0.00027671,5]
[326768979,1715337067161,-725.77,0.00027671,5]
[326768980,1715337067170,-1592.39,0.00027671,5]
[326768981,1715337067179,-1408.94,0.00027671,5]
[326768982,1715337067188,-500.0,0.00027671,5]
[326768983,1715337067197,-1027.27,0.00027671,5]
[326768984,1715337067207,-5057.16,0.00027671,5]
[326768985,1715337067215,-884.6,0.00027671,5]
[326768986,1715337067224,-1987.19,0.00027671,5]
[326768987,1715337067234,-760.98,0.00027671,5]
[326768988,1715337067243,-33110.7,0.00027671,5]
[326768989,1715337067252,-1028.48,0.00027671,5]
[326768990,1715337067261,-6981.45,0.00027671,5]
[326768991,1715337067270,-500.0,0.00027671,5]
[326768992,1715337067279,-1907.84,0.00027671,5]
[326768993,1715337067289,-500.0,0.00027671,5]
[326768994,1715337067299,-574.53,0.00027671,5]
[326768995,1715337067308,-577.01,0.00027671,5]
[326768996,1715337067317,-1501.25,0.00027671,5]
[326768997,1715337067326,-2796.61,0.00027671,5]
[326768998,1715337067338,-966.97,0.00027671,5]
[326768999,1715337067348,-753.3,0.00027671,5]
[326769000,1715337067357,-1584.09,0.00027671,5]
[326769001,1715337067367,-5144.45,0.00027671,5]
[326769002,1715337067376,-2653.75,0.00027671,5]
[326769003,1715337067387,-500.0,0.00027671,5]
[326769004,1715337067397,-9292.31,0.00027671,5]
[326769005,1715337067407,-2032.63,0.00027671,5]
[326769006,1715337067417,-2190.27,0.00027671,5]
[326769007,1715337067428,-500.0,0.00027671,5]
[326769008,1715337067438,-680.83,0.00027671,5]
[326769009,1715337067447,-1064.47,0.00027671,5]
[326769010,1715337067456,-500.0,0.00027671,5]
[326769011,1715337067465,-519.19,0.00027671,5]
[326769012,1715337067475,-410.88188383,0.00027671,5]
[326769013,1715337067484,-1124.88,0.00027671,5]
[326769014,1715337067494,-500.0,0.00027671,2]
[326769015,1715337067505,-500.0,0.00027671,5]